[Event "Titled Tuesday Blitz December 7 2021"]
[White "Colbow, Collin"]
[Black "Punin, Andrii"]
[WhiteFideId "16201132"]
[BlackFideId "14112639"]
[WhiteElo "2137"]
[BlackElo "2357"]
[Result "1/2-1/2"]
[Round "11"]
[TimeControl "180+1"]
[Date "2021.12.07"]
[WhiteClock "0:00:11"]
[BlackClock "0:00:41"]

1. e4 {[%clk 0:03:00]}  c6 {[%clk 0:02:58]} 2. Nf3 {[%clk 0:03:00]}  d5 {[%clk 0:02:58]} 3. d3 {[%clk 0:03:01]}  dxe4 {[%clk 0:02:56]} 4. dxe4 {[%clk 0:03:01]}  Qxd1+ {[%clk 0:02:56]} 5. Kxd1 {[%clk 0:03:02]}  Nf6 {[%clk 0:02:54]} 6. Nbd2 {[%clk 0:03:02]}  Bg4 {[%clk 0:02:46]} 7. Be2 {[%clk 0:03:01]}  g6 {[%clk 0:02:45]} 8. Ne1 {[%clk 0:03:01]}  Bxe2+ {[%clk 0:02:45]} 9. Kxe2 {[%clk 0:03:02]}  Bh6 {[%clk 0:02:35]} 10. f3 {[%clk 0:02:58]}  Nbd7 {[%clk 0:02:32]} 11. Nd3 {[%clk 0:02:58]}  Nb6 {[%clk 0:02:23]} 12. a4 {[%clk 0:02:57]}  O-O-O {[%clk 0:02:17]} 13. a5 {[%clk 0:02:57]}  Nbd7 {[%clk 0:02:17]} 14. Nc4 {[%clk 0:02:51]}  Bxc1 {[%clk 0:02:15]} 15. Rhxc1 {[%clk 0:02:52]}  Kc7 {[%clk 0:02:10]} 16. b4 {[%clk 0:02:51]}  a6 {[%clk 0:02:07]} 17. Nd2 {[%clk 0:02:34]}  h5 {[%clk 0:02:06]} 18. c4 {[%clk 0:02:28]}  Ne8 {[%clk 0:02:01]} 19. b5 {[%clk 0:02:27]}  Nd6 {[%clk 0:01:59]} 20. bxa6 {[%clk 0:02:21]}  bxa6 {[%clk 0:01:58]} 21. Nb3 {[%clk 0:02:19]}  Ra8 {[%clk 0:01:47]} 22. Ndc5 {[%clk 0:02:18]}  Nb7 {[%clk 0:01:43]} 23. Nxb7 {[%clk 0:02:13]}  Kxb7 {[%clk 0:01:43]} 24. Kd3 {[%clk 0:01:39]}  Kc7 {[%clk 0:01:43]} 25. Kc3 {[%clk 0:01:39]}  Rad8 {[%clk 0:01:32]} 26. Rd1 {[%clk 0:01:34]}  Nb8 {[%clk 0:01:32]} 27. Nc5 {[%clk 0:01:32]}  Rxd1 {[%clk 0:01:30]} 28. Rxd1 {[%clk 0:01:33]}  Rd8 {[%clk 0:01:29]} 29. Rb1 {[%clk 0:01:33]}  Kc8 {[%clk 0:01:18]} 30. Rb7 {[%clk 0:01:28]}  Nd7 {[%clk 0:01:17]} 31. Rxd7 {[%clk 0:01:15]}  Rxd7 {[%clk 0:01:17]} 32. Nxd7 {[%clk 0:01:16]}  Kxd7 {[%clk 0:01:17]} 33. Kd4 {[%clk 0:01:17]}  Kd6 {[%clk 0:01:09]} 34. e5+ {[%clk 0:01:17]}  Kd7 {[%clk 0:01:01]} 35. Kc5 {[%clk 0:01:13]}  Kc7 {[%clk 0:01:00]} 36. f4 {[%clk 0:00:55]}  Kb7 {[%clk 0:00:58]} 37. g3 {[%clk 0:00:49]}  Kc7 {[%clk 0:00:57]} 38. h3 {[%clk 0:00:49]}  Kb7 {[%clk 0:00:57]} 39. g4 {[%clk 0:00:50]}  hxg4 {[%clk 0:00:50]} 40. hxg4 {[%clk 0:00:51]}  Kc7 {[%clk 0:00:50]} 41. f5 {[%clk 0:00:43]}  gxf5 {[%clk 0:00:49]} 42. gxf5 {[%clk 0:00:44]}  Kb7 {[%clk 0:00:49]} 43. Kd4 {[%clk 0:00:27]}  Kc7 {[%clk 0:00:47]} 44. Ke4 {[%clk 0:00:25]}  f6 {[%clk 0:00:42]} 45. e6 {[%clk 0:00:12]}  Kd6 {[%clk 0:00:41]} 46. Kd4 {[%clk 0:00:13]}  Kc7 {[%clk 0:00:39]} 47. Kc5 {[%clk 0:00:07]}  Kb7 {[%clk 0:00:39]} 48. Kd4 {[%clk 0:00:07]}  Kc7 {[%clk 0:00:39]} 49. c5 {[%clk 0:00:08]}  Kd8 {[%clk 0:00:39]} 50. Ke4 {[%clk 0:00:08]}  Ke8 {[%clk 0:00:40]} 51. Kf4 {[%clk 0:00:09]}  Kf8 {[%clk 0:00:40]} 52. Kg4 {[%clk 0:00:10]}  Kg7 {[%clk 0:00:40]} 53. Kh5 {[%clk 0:00:09]}  Kh7 {[%clk 0:00:41]} 54. Kh4 {[%clk 0:00:10]}  Kg7 {[%clk 0:00:41]} 55. Kg4 {[%clk 0:00:10]}  Kh6 {[%clk 0:00:41]} 56. Kh4 {[%clk 0:00:10]}  Kg7 {[%clk 0:00:41]} 57. Kh5 {[%clk 0:00:11]}  Kh7 {[%clk 0:00:41]} 58. Kg4 {[%clk 0:00:11]}  Kh6 {[%clk 0:00:41]} 59. Kh4 {[%clk 0:00:11]}  Kg7 {[%clk 0:00:41]} 1/2-1/2


[Site "https://www.chess.com"]

[Event "Titled Tuesday Blitz December 7 2021"]
[White "Cruz Mendez, Jean Marco"]
[Black "Budrewicz, Krzysztof"]
[WhiteFideId "3526402"]
[BlackFideId "1127950"]
[WhiteElo "2064"]
[BlackElo "2242"]
[Result "0-1"]
[Round "11"]
[TimeControl "180+1"]
[Date "2021.12.07"]
[WhiteClock "0:00:50"]
[BlackClock "0:01:25"]

1. d4 {[%clk 0:03:00]}  Nf6 {[%clk 0:02:56]} 2. Bg5 {[%clk 0:02:56]}  d5 {[%clk 0:02:56]} 3. Nd2 {[%clk 0:02:55]}  Nbd7 {[%clk 0:02:54]} 4. e3 {[%clk 0:02:54]}  h6 {[%clk 0:02:54]} 5. Bh4 {[%clk 0:02:53]}  g5 {[%clk 0:02:55]} 6. Bg3 {[%clk 0:02:53]}  Bg7 {[%clk 0:02:56]} 7. Bd3 {[%clk 0:02:52]}  c5 {[%clk 0:02:56]} 8. c3 {[%clk 0:02:51]}  O-O {[%clk 0:02:56]} 9. h4 {[%clk 0:02:49]}  g4 {[%clk 0:02:55]} 10. f3 {[%clk 0:02:49]}  cxd4 {[%clk 0:02:54]} 11. exd4 {[%clk 0:02:46]}  h5 {[%clk 0:02:54]} 12. Qe2 {[%clk 0:02:42]}  Nb6 {[%clk 0:02:53]} 13. O-O-O {[%clk 0:02:40]}  Be6 {[%clk 0:02:52]} 14. fxg4 {[%clk 0:02:39]}  Bxg4 {[%clk 0:02:51]} 15. Ngf3 {[%clk 0:02:39]}  Rc8 {[%clk 0:02:50]} 16. Kb1 {[%clk 0:02:37]}  Na4 {[%clk 0:02:50]} 17. Rc1 {[%clk 0:02:27]}  Qb6 {[%clk 0:02:49]} 18. Nb3 {[%clk 0:02:26]}  e6 {[%clk 0:02:46]} 19. Qe3 {[%clk 0:02:21]}  Ne4 {[%clk 0:02:44]} 20. Be5 {[%clk 0:02:14]}  f6 {[%clk 0:02:39]} 21. Bf4 {[%clk 0:02:11]}  Bf5 {[%clk 0:02:37]} 22. Bh6 {[%clk 0:01:55]}  Rf7 {[%clk 0:02:37]} 23. Bxg7 {[%clk 0:01:53]}  Rxg7 {[%clk 0:02:37]} 24. g4 {[%clk 0:01:48]}  hxg4 {[%clk 0:02:34]} 25. Nfd2 {[%clk 0:01:48]}  Nxd2+ {[%clk 0:02:30]} 26. Qxd2 {[%clk 0:01:49]}  Be4 {[%clk 0:02:24]} 27. Bxe4 {[%clk 0:01:42]}  dxe4 {[%clk 0:02:24]} 28. Qf4 {[%clk 0:01:43]}  f5 {[%clk 0:02:24]} 29. h5 {[%clk 0:01:41]}  Kh7 {[%clk 0:02:23]} 30. h6 {[%clk 0:01:41]}  Rg6 {[%clk 0:02:23]} 31. Rcd1 {[%clk 0:01:34]}  Qc7 {[%clk 0:02:22]} 32. Qe3 {[%clk 0:01:31]}  g3 {[%clk 0:02:22]} 33. d5 {[%clk 0:01:29]}  g2 {[%clk 0:02:19]} 34. Rhg1 {[%clk 0:01:29]}  exd5 {[%clk 0:02:19]} 35. Rxd5 {[%clk 0:01:27]}  Qb6 {[%clk 0:02:17]} 36. Rd7+ {[%clk 0:01:20]}  Kh8 {[%clk 0:02:15]} 37. Qe1 {[%clk 0:01:08]}  Re8 {[%clk 0:02:04]} 38. Rd4 {[%clk 0:01:06]}  Nc5 {[%clk 0:02:00]} 39. Qf2 {[%clk 0:01:06]}  Nxb3 {[%clk 0:01:57]} 40. axb3 {[%clk 0:01:06]}  e3 {[%clk 0:01:53]} 41. Qxf5 {[%clk 0:01:01]}  e2 {[%clk 0:01:51]} 42. Qf2 {[%clk 0:00:58]}  e1=Q+ {[%clk 0:01:43]} 43. Rxe1 {[%clk 0:00:50]}  Rxe1+ {[%clk 0:01:43]} 44. Kc2 {[%clk 0:00:50]}  Re8 {[%clk 0:01:25]} 0-1


[Site "https://www.chess.com"]

[Event "Titled Tuesday Blitz December 7 2021"]
[White "Demchenko, Anton"]
[Black "Mirzoev, Azer"]
[WhiteFideId "4160258"]
[BlackFideId "13400304"]
[WhiteElo "2531"]
[BlackElo "2525"]
[Result "1/2-1/2"]
[Round "11"]
[TimeControl "180+1"]
[Date "2021.12.07"]
[WhiteClock "0:00:08"]
[BlackClock "0:00:11"]

1. e4 {[%clk 0:03:00]}  c6 {[%clk 0:03:00]} 2. d4 {[%clk 0:03:00]}  d5 {[%clk 0:03:01]} 3. Nd2 {[%clk 0:03:01]}  dxe4 {[%clk 0:03:00]} 4. Nxe4 {[%clk 0:03:02]}  Nf6 {[%clk 0:02:59]} 5. Qd3 {[%clk 0:03:01]}  Nxe4 {[%clk 0:02:58]} 6. Qxe4 {[%clk 0:03:02]}  Qd5 {[%clk 0:02:57]} 7. Bd3 {[%clk 0:03:01]}  Qxe4+ {[%clk 0:02:57]} 8. Bxe4 {[%clk 0:03:02]}  Nd7 {[%clk 0:02:57]} 9. Bd3 {[%clk 0:02:56]}  g6 {[%clk 0:02:54]} 10. Ne2 {[%clk 0:02:56]}  Bg7 {[%clk 0:02:54]} 11. Be3 {[%clk 0:02:31]}  O-O {[%clk 0:02:50]} 12. O-O-O {[%clk 0:02:28]}  e5 {[%clk 0:02:47]} 13. c3 {[%clk 0:02:23]}  exd4 {[%clk 0:02:44]} 14. Bxd4 {[%clk 0:02:21]}  Ne5 {[%clk 0:02:38]} 15. Bc2 {[%clk 0:02:21]}  Ng4 {[%clk 0:02:29]} 16. Bxg7 {[%clk 0:02:16]}  Kxg7 {[%clk 0:02:29]} 17. Rdf1 {[%clk 0:02:17]}  Re8 {[%clk 0:02:24]} 18. Nd4 {[%clk 0:02:15]}  Bd7 {[%clk 0:02:12]} 19. h3 {[%clk 0:02:15]}  Nf6 {[%clk 0:02:11]} 20. Rd1 {[%clk 0:02:07]}  Rad8 {[%clk 0:02:10]} 21. Rhe1 {[%clk 0:01:47]}  c5 {[%clk 0:02:10]} 22. Nb3 {[%clk 0:01:29]}  b6 {[%clk 0:02:09]} 23. Nd2 {[%clk 0:01:18]}  Bc6 {[%clk 0:02:07]} 24. g3 {[%clk 0:01:19]}  h5 {[%clk 0:02:00]} 25. Rxe8 {[%clk 0:01:16]}  Rxe8 {[%clk 0:01:59]} 26. Bd3 {[%clk 0:01:17]}  h4 {[%clk 0:01:54]} 27. Nc4 {[%clk 0:00:29]}  Bg2 {[%clk 0:01:37]} 28. gxh4 {[%clk 0:00:24]}  Bxh3 {[%clk 0:01:32]} 29. Nd6 {[%clk 0:00:25]}  Rh8 {[%clk 0:01:28]} 30. Bc4 {[%clk 0:00:24]}  Rxh4 {[%clk 0:01:23]} 31. Bxf7 {[%clk 0:00:23]}  Rf4 {[%clk 0:01:16]} 32. Rg1 {[%clk 0:00:17]}  Bg4 {[%clk 0:01:15]} 33. Rg2 {[%clk 0:00:09]}  Bh5 {[%clk 0:00:42]} 34. Bb3 {[%clk 0:00:09]}  Ng4 {[%clk 0:00:40]} 35. Bd1 {[%clk 0:00:05]}  Rxf2 {[%clk 0:00:15]} 36. Rxg4 {[%clk 0:00:05]}  Rf1 {[%clk 0:00:13]} 37. Kd2 {[%clk 0:00:04]}  Rxd1+ {[%clk 0:00:12]} 38. Kxd1 {[%clk 0:00:04]}  Bxg4+ {[%clk 0:00:13]} 39. Kd2 {[%clk 0:00:05]}  Bd7 {[%clk 0:00:13]} 40. Ke3 {[%clk 0:00:05]}  Kf6 {[%clk 0:00:13]} 41. Ne4+ {[%clk 0:00:06]}  Ke5 {[%clk 0:00:13]} 42. Ng5 {[%clk 0:00:05]}  Kf5 {[%clk 0:00:12]} 43. Ne4 {[%clk 0:00:05]}  g5 {[%clk 0:00:12]} 44. Nd6+ {[%clk 0:00:06]}  Ke5 {[%clk 0:00:11]} 45. Nf7+ {[%clk 0:00:06]}  Kf6 {[%clk 0:00:12]} 46. Nd6 {[%clk 0:00:06]}  g4 {[%clk 0:00:12]} 47. Kf4 {[%clk 0:00:06]}  Be6 {[%clk 0:00:11]} 48. a3 {[%clk 0:00:06]}  Ke7 {[%clk 0:00:11]} 49. Ne4 {[%clk 0:00:07]}  a5 {[%clk 0:00:11]} 50. Ng5 {[%clk 0:00:06]}  Bd7 {[%clk 0:00:11]} 51. Ne4 {[%clk 0:00:06]}  Ke6 {[%clk 0:00:11]} 52. Kxg4 {[%clk 0:00:04]}  Kd5+ {[%clk 0:00:11]} 53. Kf4 {[%clk 0:00:05]}  Kc4 {[%clk 0:00:10]} 54. Ke5 {[%clk 0:00:05]}  Kb3 {[%clk 0:00:10]} 55. Kd6 {[%clk 0:00:05]}  Be8 {[%clk 0:00:10]} 56. Kc7 {[%clk 0:00:05]}  Kxb2 {[%clk 0:00:10]} 57. Kxb6 {[%clk 0:00:06]}  a4 {[%clk 0:00:11]} 58. Nxc5 {[%clk 0:00:06]}  Kxa3 {[%clk 0:00:11]} 59. Nxa4 {[%clk 0:00:06]}  Kxa4 {[%clk 0:00:11]} 60. c4 {[%clk 0:00:07]}  Kb4 {[%clk 0:00:10]} 61. c5 {[%clk 0:00:07]}  Kc4 {[%clk 0:00:11]} 62. c6 {[%clk 0:00:08]}  Bxc6 {[%clk 0:00:11]} 1/2-1/2


[Site "https://www.chess.com"]

[Event "Titled Tuesday Blitz December 7 2021"]
[White "Demin, Vladimir"]
[Black "Makhmudov, Shukhrat"]
[WhiteFideId "4167457"]
[BlackFideId "14200775"]
[WhiteElo "2496"]
[BlackElo "2135"]
[Result "0-1"]
[Round "11"]
[TimeControl "180+1"]
[Date "2021.12.07"]
[WhiteClock "0:01:16"]
[BlackClock "0:01:10"]

1. d4 {[%clk 0:03:00]}  Nf6 {[%clk 0:02:59]} 2. g4 {[%clk 0:03:00]}  Nxg4 {[%clk 0:02:58]} 3. e4 {[%clk 0:03:00]}  d5 {[%clk 0:02:56]} 4. Be2 {[%clk 0:02:59]}  h5 {[%clk 0:02:50]} 5. e5 {[%clk 0:02:56]}  g6 {[%clk 0:02:48]} 6. Nf3 {[%clk 0:02:53]}  e6 {[%clk 0:02:45]} 7. Bg5 {[%clk 0:02:51]}  Be7 {[%clk 0:02:45]} 8. h4 {[%clk 0:02:50]}  c5 {[%clk 0:02:42]} 9. Nc3 {[%clk 0:02:46]}  Nc6 {[%clk 0:02:42]} 10. Nb5 {[%clk 0:02:46]}  Qb6 {[%clk 0:02:16]} 11. Bxe7 {[%clk 0:02:44]}  Nxe7 {[%clk 0:02:08]} 12. Nd6+ {[%clk 0:02:43]}  Kf8 {[%clk 0:02:08]} 13. Ng5 {[%clk 0:02:41]}  Nh6 {[%clk 0:02:07]} 14. Bxh5 {[%clk 0:02:32]}  Qxb2 {[%clk 0:01:53]} 15. O-O {[%clk 0:02:11]}  Qxd4 {[%clk 0:01:50]} 16. Qxd4 {[%clk 0:02:10]}  cxd4 {[%clk 0:01:50]} 17. Be2 {[%clk 0:02:09]}  Nhf5 {[%clk 0:01:46]} 18. Ngxf7 {[%clk 0:02:06]}  Rxh4 {[%clk 0:01:45]} 19. Kg2 {[%clk 0:02:06]}  Bd7 {[%clk 0:01:34]} 20. Rh1 {[%clk 0:02:03]}  b6 {[%clk 0:01:28]} 21. Bd3 {[%clk 0:01:54]}  Kg7 {[%clk 0:01:26]} 22. a4 {[%clk 0:01:35]}  Rf8 {[%clk 0:01:24]} 23. Nxf5+ {[%clk 0:01:23]}  Nxf5 {[%clk 0:01:24]} 24. Nd6 {[%clk 0:01:21]}  Rg4+ {[%clk 0:01:14]} 25. Kf1 {[%clk 0:01:17]}  Ng3+ {[%clk 0:01:12]} 26. Kg2 {[%clk 0:01:15]}  Nxh1+ {[%clk 0:01:10]} 27. Kxh1 {[%clk 0:01:16]}  Rh8# {[%clk 0:01:10]} 0-1


[Site "https://www.chess.com"]

[Event "Titled Tuesday Blitz December 7 2021"]
[White "Donchenko, Alexander"]
[Black "Ianov, Viktor"]
[WhiteFideId "24603295"]
[BlackFideId "14102730"]
[WhiteElo "2494"]
[BlackElo "2307"]
[Result "1-0"]
[Round "11"]
[TimeControl "180+1"]
[Date "2021.12.07"]
[WhiteClock "0:01:38"]
[BlackClock "0:00:43"]

1. b3 {[%clk 0:03:00]}  d6 {[%clk 0:02:58]} 2. Bb2 {[%clk 0:03:00]}  Nd7 {[%clk 0:02:58]} 3. c4 {[%clk 0:03:00]}  Ngf6 {[%clk 0:02:58]} 4. g3 {[%clk 0:03:00]}  g6 {[%clk 0:02:58]} 5. Bg2 {[%clk 0:03:00]}  Bg7 {[%clk 0:02:59]} 6. Nf3 {[%clk 0:03:00]}  O-O {[%clk 0:02:59]} 7. O-O {[%clk 0:03:01]}  e5 {[%clk 0:02:59]} 8. Nc3 {[%clk 0:03:01]}  Re8 {[%clk 0:02:58]} 9. Qc2 {[%clk 0:03:00]}  a5 {[%clk 0:02:56]} 10. Rad1 {[%clk 0:03:00]}  Nc5 {[%clk 0:02:54]} 11. d4 {[%clk 0:02:58]}  exd4 {[%clk 0:02:49]} 12. Nxd4 {[%clk 0:02:59]}  c6 {[%clk 0:02:48]} 13. Ba3 {[%clk 0:02:57]}  Qb6 {[%clk 0:02:46]} 14. h3 {[%clk 0:02:54]}  h5 {[%clk 0:02:44]} 15. Rfe1 {[%clk 0:02:50]}  Bd7 {[%clk 0:02:41]} 16. e4 {[%clk 0:02:48]}  Rad8 {[%clk 0:02:41]} 17. Nf3 {[%clk 0:02:44]}  Bc8 {[%clk 0:02:37]} 18. Bc1 {[%clk 0:02:44]}  a4 {[%clk 0:02:34]} 19. bxa4 {[%clk 0:02:39]}  Qb4 {[%clk 0:02:27]} 20. Bf1 {[%clk 0:02:35]}  Nfd7 {[%clk 0:02:22]} 21. Bd2 {[%clk 0:02:32]}  Qb6 {[%clk 0:02:17]} 22. Bg5 {[%clk 0:02:29]}  Ne5 {[%clk 0:02:05]} 23. Nxe5 {[%clk 0:02:28]}  Bxe5 {[%clk 0:02:02]} 24. Bxd8 {[%clk 0:02:27]}  Rxd8 {[%clk 0:02:01]} 25. Kg2 {[%clk 0:02:19]}  Be6 {[%clk 0:01:57]} 26. f4 {[%clk 0:02:17]}  Bg7 {[%clk 0:01:55]} 27. Kh1 {[%clk 0:02:08]}  Qb4 {[%clk 0:01:52]} 28. Re3 {[%clk 0:02:06]}  Ra8 {[%clk 0:01:43]} 29. f5 {[%clk 0:01:57]}  Bd7 {[%clk 0:01:33]} 30. fxg6 {[%clk 0:01:57]}  fxg6 {[%clk 0:01:33]} 31. Rxd6 {[%clk 0:01:57]}  Be8 {[%clk 0:01:29]} 32. e5 {[%clk 0:01:55]}  Kh7 {[%clk 0:01:22]} 33. Bd3 {[%clk 0:01:43]}  Nxd3 {[%clk 0:01:16]} 34. Qxd3 {[%clk 0:01:44]}  c5 {[%clk 0:01:01]} 35. Ne4 {[%clk 0:01:41]}  Bc6 {[%clk 0:00:56]} 36. Kh2 {[%clk 0:01:40]}  Bxe4 {[%clk 0:00:43]} 37. Qxe4 {[%clk 0:01:38]} 1-0


[Site "https://www.chess.com"]

[Event "Titled Tuesday Blitz December 7 2021"]
[White "Durarbayli, Vasif"]
[Black "Gasanov, Eldar"]
[WhiteFideId "13402935"]
[BlackFideId "14104466"]
[WhiteElo "2599"]
[BlackElo "2454"]
[Result "1-0"]
[Round "11"]
[TimeControl "180+1"]
[Date "2021.12.07"]
[WhiteClock "0:00:09"]
[BlackClock "0:00:01"]

1. e4 {[%clk 0:03:00]}  c5 {[%clk 0:02:58]} 2. Nf3 {[%clk 0:02:57]}  Nc6 {[%clk 0:02:58]} 3. d4 {[%clk 0:02:58]}  cxd4 {[%clk 0:02:59]} 4. Nxd4 {[%clk 0:02:59]}  Nf6 {[%clk 0:02:59]} 5. Nc3 {[%clk 0:02:59]}  g6 {[%clk 0:02:59]} 6. Nxc6 {[%clk 0:02:59]}  dxc6 {[%clk 0:03:00]} 7. e5 {[%clk 0:02:59]}  Qxd1+ {[%clk 0:02:58]} 8. Nxd1 {[%clk 0:02:54]}  Ng4 {[%clk 0:02:54]} 9. f4 {[%clk 0:02:51]}  f6 {[%clk 0:02:45]} 10. h3 {[%clk 0:02:34]}  Nh6 {[%clk 0:02:45]} 11. exf6 {[%clk 0:02:23]}  exf6 {[%clk 0:02:45]} 12. Kf2 {[%clk 0:02:20]}  Nf5 {[%clk 0:02:40]} 13. g4 {[%clk 0:02:12]}  Bc5+ {[%clk 0:02:39]} 14. Ne3 {[%clk 0:02:11]}  Nd4 {[%clk 0:02:24]} 15. Kg2 {[%clk 0:01:43]}  f5 {[%clk 0:02:10]} 16. Bd3 {[%clk 0:01:40]}  O-O {[%clk 0:02:04]} 17. Bc4+ {[%clk 0:01:12]}  Kg7 {[%clk 0:01:47]} 18. b4 {[%clk 0:01:09]}  Bb6 {[%clk 0:01:43]} 19. Bb2 {[%clk 0:01:01]}  fxg4 {[%clk 0:01:36]} 20. hxg4 {[%clk 0:00:55]}  Rxf4 {[%clk 0:01:36]} 21. Raf1 {[%clk 0:00:40]}  g5 {[%clk 0:01:35]} 22. Bd3 {[%clk 0:00:30]}  h6 {[%clk 0:01:26]} 23. Rxf4 {[%clk 0:00:24]}  gxf4 {[%clk 0:01:27]} 24. Nc4 {[%clk 0:00:25]}  c5 {[%clk 0:01:18]} 25. Rh5 {[%clk 0:00:13]}  Bxg4 {[%clk 0:01:17]} 26. bxc5 {[%clk 0:00:13]}  Bxh5 {[%clk 0:01:07]} 27. Bxd4+ {[%clk 0:00:13]}  Kg8 {[%clk 0:01:02]} 28. cxb6 {[%clk 0:00:14]}  axb6 {[%clk 0:00:58]} 29. Nxb6 {[%clk 0:00:15]}  Ra5 {[%clk 0:00:47]} 30. a4 {[%clk 0:00:13]}  Rg5+ {[%clk 0:00:44]} 31. Kf2 {[%clk 0:00:13]}  Rg3 {[%clk 0:00:43]} 32. Be4 {[%clk 0:00:12]}  Rh3 {[%clk 0:00:39]} 33. Bxb7 {[%clk 0:00:12]}  Rh2+ {[%clk 0:00:39]} 34. Kg1 {[%clk 0:00:09]}  Rxc2 {[%clk 0:00:39]} 35. a5 {[%clk 0:00:09]}  Rc1+ {[%clk 0:00:35]} 36. Kg2 {[%clk 0:00:09]}  Rc2+ {[%clk 0:00:28]} 37. Bf2 {[%clk 0:00:10]}  Be2 {[%clk 0:00:19]} 38. a6 {[%clk 0:00:08]}  f3+ {[%clk 0:00:12]} 39. Kg3 {[%clk 0:00:08]}  Bxa6 {[%clk 0:00:10]} 40. Bxa6 {[%clk 0:00:08]}  Rc6 {[%clk 0:00:07]} 41. Bb7 {[%clk 0:00:07]}  Rg6+ {[%clk 0:00:05]} 42. Kxf3 {[%clk 0:00:07]}  h5 {[%clk 0:00:05]} 43. Bc8 {[%clk 0:00:06]}  h4 {[%clk 0:00:05]} 44. Nd5 {[%clk 0:00:06]}  Kf7 {[%clk 0:00:02]} 45. Nf4 {[%clk 0:00:06]}  Rc6 {[%clk 0:00:01]} 46. Bh3 {[%clk 0:00:07]}  Rc3+ {[%clk 0:00:01]} 47. Kg4 {[%clk 0:00:07]}  Ra3 {[%clk 0:00:02]} 48. Bxh4 {[%clk 0:00:08]}  Ra1 {[%clk 0:00:01]} 49. Bg5 {[%clk 0:00:09]} 1-0


[Site "https://www.chess.com"]

[Event "Titled Tuesday Blitz December 7 2021"]
[White "Dzhaparov, Medet"]
[Black "Martins, Carlos"]
[WhiteFideId "13803689"]
[BlackFideId "2101688"]
[WhiteElo "1702"]
[BlackElo "2183"]
[Result "1/2-1/2"]
[Round "11"]
[TimeControl "180+1"]
[Date "2021.12.07"]
[WhiteClock "0:00:04"]
[BlackClock "0:00:01"]

1. e4 {[%clk 0:02:53]}  c5 {[%clk 0:02:59]} 2. Nf3 {[%clk 0:02:53]}  d6 {[%clk 0:03:00]} 3. d4 {[%clk 0:02:53]}  cxd4 {[%clk 0:03:00]} 4. Nxd4 {[%clk 0:02:54]}  Nf6 {[%clk 0:03:01]} 5. Nc3 {[%clk 0:02:54]}  Nc6 {[%clk 0:03:01]} 6. Bg5 {[%clk 0:02:46]}  e6 {[%clk 0:03:01]} 7. Qd2 {[%clk 0:02:46]}  a6 {[%clk 0:03:00]} 8. O-O-O {[%clk 0:02:46]}  h6 {[%clk 0:03:00]} 9. Bh4 {[%clk 0:02:40]}  Nxe4 {[%clk 0:02:59]} 10. Qf4 {[%clk 0:01:31]}  Ng5 {[%clk 0:02:57]} 11. Nxc6 {[%clk 0:01:22]}  bxc6 {[%clk 0:02:53]} 12. Ne4 {[%clk 0:01:22]}  d5 {[%clk 0:02:53]} 13. Bxg5 {[%clk 0:00:49]}  hxg5 {[%clk 0:02:52]} 14. Nxg5 {[%clk 0:00:50]}  Qf6 {[%clk 0:02:38]} 15. Qg3 {[%clk 0:00:28]}  Bc5 {[%clk 0:02:10]} 16. Nf3 {[%clk 0:00:25]}  O-O {[%clk 0:01:57]} 17. Bd3 {[%clk 0:00:25]}  a5 {[%clk 0:01:46]} 18. h4 {[%clk 0:00:13]}  Ba6 {[%clk 0:01:43]} 19. h5 {[%clk 0:00:12]}  Bxd3 {[%clk 0:01:32]} 20. Rxd3 {[%clk 0:00:13]}  Rab8 {[%clk 0:01:30]} 21. c3 {[%clk 0:00:13]}  Rfe8 {[%clk 0:01:20]} 22. Re1 {[%clk 0:00:10]}  e5 {[%clk 0:01:12]} 23. Rxe5 {[%clk 0:00:09]}  Rxe5 {[%clk 0:01:08]} 24. Qxe5 {[%clk 0:00:09]}  Qxe5 {[%clk 0:01:04]} 25. Nxe5 {[%clk 0:00:10]}  Rc8 {[%clk 0:00:57]} 26. f3 {[%clk 0:00:10]}  f6 {[%clk 0:00:54]} 27. Ng6 {[%clk 0:00:10]}  Kf7 {[%clk 0:00:52]} 28. c4 {[%clk 0:00:09]}  Rd8 {[%clk 0:00:47]} 29. cxd5 {[%clk 0:00:09]}  cxd5 {[%clk 0:00:47]} 30. Kd2 {[%clk 0:00:07]}  d4 {[%clk 0:00:44]} 31. Nf4 {[%clk 0:00:07]}  f5 {[%clk 0:00:25]} 32. g4 {[%clk 0:00:03]}  fxg4 {[%clk 0:00:20]} 33. fxg4 {[%clk 0:00:04]}  Kf6 {[%clk 0:00:21]} 34. Ne2 {[%clk 0:00:03]}  Kg5 {[%clk 0:00:19]} 35. a3 {[%clk 0:00:02]}  Kxg4 {[%clk 0:00:18]} 36. Rg3+ {[%clk 0:00:03]}  Kxh5 {[%clk 0:00:18]} 37. Rxg7 {[%clk 0:00:04]}  d3 {[%clk 0:00:17]} 38. Nf4+ {[%clk 0:00:04]}  Kh6 {[%clk 0:00:16]} 39. Rg6+ {[%clk 0:00:04]}  Kh7 {[%clk 0:00:16]} 40. Rg4 {[%clk 0:00:04]}  Be3+ {[%clk 0:00:14]} 41. Kxe3 {[%clk 0:00:04]}  d2 {[%clk 0:00:14]} 42. Rh4+ {[%clk 0:00:04]}  Kg8 {[%clk 0:00:12]} 43. Rg4+ {[%clk 0:00:04]}  Kf7 {[%clk 0:00:12]} 44. Rg1 {[%clk 0:00:04]}  d1=Q {[%clk 0:00:12]} 45. Rxd1 {[%clk 0:00:05]}  Rxd1 {[%clk 0:00:12]} 46. Nd3 {[%clk 0:00:06]}  Ke6 {[%clk 0:00:10]} 47. Kd4 {[%clk 0:00:06]}  Kd6 {[%clk 0:00:10]} 48. Kc4 {[%clk 0:00:06]}  Kc6 {[%clk 0:00:09]} 49. b4 {[%clk 0:00:06]}  axb4 {[%clk 0:00:08]} 50. axb4 {[%clk 0:00:06]}  Rb1 {[%clk 0:00:08]} 51. Kc3 {[%clk 0:00:06]}  Kb5 {[%clk 0:00:07]} 52. Kd4 {[%clk 0:00:06]}  Rb3 {[%clk 0:00:06]} 53. Ke4 {[%clk 0:00:06]}  Rc3 {[%clk 0:00:06]} 54. Kd4 {[%clk 0:00:06]}  Rb3 {[%clk 0:00:05]} 55. Ke4 {[%clk 0:00:04]}  Kc4 {[%clk 0:00:05]} 56. Ne5+ {[%clk 0:00:03]}  Kxb4 {[%clk 0:00:06]} 57. Kd4 {[%clk 0:00:04]}  Rb1 {[%clk 0:00:05]} 58. Nd3+ {[%clk 0:00:04]}  Kb5 {[%clk 0:00:05]} 59. Kc3 {[%clk 0:00:04]}  Rh1 {[%clk 0:00:05]} 60. Kd4 {[%clk 0:00:04]}  Rh3 {[%clk 0:00:04]} 61. Ne5 {[%clk 0:00:04]}  Kb4 {[%clk 0:00:03]} 62. Nc6+ {[%clk 0:00:03]}  Kb5 {[%clk 0:00:03]} 63. Ne5 {[%clk 0:00:03]}  Kb6 {[%clk 0:00:03]} 64. Kd5 {[%clk 0:00:04]}  Rh5 {[%clk 0:00:03]} 65. Kd6 {[%clk 0:00:04]}  Rxe5 {[%clk 0:00:01]} 66. Kxe5 {[%clk 0:00:04]} 1/2-1/2


[Site "https://www.chess.com"]